fUST/lending_fUST_20250812
["ID","MTS","AMOUNT","RATE_DAILY","PERIOD"]
[378709407,1754977843607,-151.0,0.00018671,2]
[378709409,1754977843615,-151.28597799,0.00018671,2]
[378709411,1754977843624,-151.0,0.00018671,2]
[378709415,1754977843634,-460.0,0.00018679,2]
[378709417,1754977843646,-3618.71,0.00018679,2]
[378709421,1754977843655,-460.0,0.00018679,2]
[378709424,1754977843664,-460.0,0.00018679,2]
[378709426,1754977843674,-460.0,0.00018679,2]
[378709428,1754977843683,-460.0,0.00018679,2]
[378709430,1754977843693,-460.0,0.00018679,2]
[378709432,1754977843704,-2530.02,0.00018679,2]
[378709434,1754977843713,-464.81050796,0.0001868,2]
[378709436,1754977843723,-460.0,0.0001868,2]
[378709438,1754977843733,-460.0,0.0001868,2]
[378709440,1754977843742,-460.0,0.0001868,2]
[378709442,1754977843751,-477.94196483,0.0001868,2]
[378709444,1754977843761,-465.97291717,0.0001868,2]
[378709446,1754977843770,-464.97913412,0.0001868,2]
[378709447,1754977843779,-460.0,0.0001868,2]
[378709449,1754977843788,-467.51136123,0.0001868,2]
[378709452,1754977843798,-151.57200812,0.0001868,2]
[378709454,1754977843807,-460.0,0.0001868,2]
[378709455,1754977843816,-469.22634695,0.0001868,2]
[378709458,1754977843826,-460.0,0.0001868,2]
[378709461,1754977843835,-468.68587425,0.0001868,2]
[378709464,1754977843844,-464.49853255,0.0001868,2]
[378709467,1754977843854,-578.55,0.0001868,2]
[378709470,1754977843863,-542.84,0.0001868,2]
[378709473,1754977843872,-503.27,0.0001868,2]
[378709476,1754977843882,-207.36731237,0.0001868,2]
[378709482,1754977843903,-680.82268763,0.0001868,2]
[378709485,1754977843912,-1691.96,0.0001868,2]
[378709486,1754977843921,-460.0,0.0001868,2]
[378709488,1754977843932,-122.89710539,0.0001868,2]
[378709621,1754977846548,-337.10289461,0.0001868,2]
[378709622,1754977846559,-460.0,0.0001868,2]
[378709623,1754977846568,-460.0,0.0001868,2]
[378709624,1754977846577,-420.66397879,0.0001868,2]
[378709625,1754978128681,24900.0,0.0001768,2]
[378709626,1754978232625,305.27202503,0.00018579,2]
[378709627,1754978347354,172.1845301,0.00018571,2]
[378709628,1754978352393,24.0845592,0.00018579,2]
[378709629,1754978352418,148.09997089,0.00018579,2]
[378709630,1754978513256,267.11302191,0.00018578,2]
[378709631,1754978653057,501.95430077,0.0001867,2]
[378709632,1754978703544,270.740493,0.00013699,2]
[378709633,1754978793369,233.72389418,0.00018578,2]
[378709716,1754979038652,-251.70148214,0.0001867,2]
[378709718,1754979038662,-151.0,0.0001867,2]
[378709720,1754979038671,-60.98449302,0.00018675,2]
[378709722,1754979038682,-601.73625706,0.00018675,2]
[378709725,1754979038694,-404.39176818,0.00018675,2]
[378709728,1754979038713,-132.88748174,0.00018675,2]
[378709730,1754979038722,-300.0,0.00018675,2]
[378709732,1754979038731,-300.0,0.00018675,2]
[378709734,1754979038741,-300.0,0.00018675,2]
[378709736,1754979038750,-300.0,0.00018675,2]
[378709738,1754979038759,-300.0,0.00018675,2]
[378709740,1754979038767,-1200.0,0.00018675,2]
[378709742,1754979038776,-300.0,0.00018676,2]
[378709744,1754979038785,-524.29316708,0.00018676,2]
[378709746,1754979038794,-460.0,0.00018676,2]
[378709748,1754979038803,-460.0,0.00018676,2]
[378709750,1754979038812,-550.89,0.00018677,2]
[378709752,1754979038821,-2660.77,0.00018677,2]
[378709754,1754979038830,-554.45,0.00018677,2]
[378709756,1754979038839,-851.18,0.00018677,2]
[378709758,1754979038849,-1659.79,0.00018677,2]
[378709760,1754979038858,-460.0,0.00018677,2]
[378709762,1754979038867,-798.42,0.00018677,2]
[378709764,1754979038876,-460.0,0.00018677,2]
[378709766,1754979038885,-857.31,0.00018677,2]
[378709768,1754979038895,-1025.55,0.00018677,2]
[378709770,1754979038904,-200.0,0.00018677,2]
[378709772,1754979038913,-467.70762034,0.00018677,2]
[378709774,1754979038923,-486.66,0.00018677,2]
[378709776,1754979038932,-460.0,0.00018677,2]
[378709778,1754979038941,-575.886,0.00018677,2]
[378709780,1754979038950,-460.0,0.00018677,2]
[378709782,1754979038959,-460.0,0.00018677,2]
[378709784,1754979038967,-878.77,0.00018677,2]
[378709786,1754979038977,-98.24231042,0.00018677,2]
[378710156,1754979043799,-344.95327808,0.00018676,2]
[378710157,1754979043911,-115.04672192,0.00018676,2]
[378710159,1754979043920,-361.75768958,0.00018677,2]
[378710160,1754979043929,-1377.53,0.00018677,2]
[378710161,1754979043938,-1114.04,0.00018677,2]
[378710162,1754979043948,-1466.29,0.00018677,2]
[378710163,1754979043957,-352.85184165,0.00018677,2]
[378710164,1754979043966,-3514.04,0.00018677,2]
[378710165,1754979043975,-460.0,0.00018677,2]
[378710166,1754979043984,-460.0,0.00018677,2]
[378710167,1754979043994,-460.0,0.00018677,2]
[378710168,1754979044003,-460.0,0.00018677,2]
[378710169,1754979044013,-692.25,0.00018677,2]
[378710170,1754979044034,-816.15,0.00018677,2]
[378710171,1754979044046,-2462.93,0.00018677,2]
[378710172,1754979044055,-704.75,0.00018677,2]
[378710173,1754979044066,-460.0,0.00018677,2]
[378710174,1754979044076,-460.0,0.00018677,2]
[378710175,1754979044086,-460.0,0.00018677,2]
[378710176,1754979044096,-2724.06,0.00018677,2]
[378710177,1754979044110,-660.75,0.00018677,2]
[378710178,1754979044120,-6581.60790722,0.00018678,2]
[378710179,1754979044129,-559.21093346,0.00018678,2]
[378710180,1754979044139,-351.73337165,0.00018678,2]
[378710181,1754979044153,-108.26662835,0.00018678,2]
[378710182,1754979044163,-460.0,0.00018678,2]
[378710183,1754979044173,-482.42,0.00018678,2]
[378710184,1754979044182,-473.86807564,0.00018678,2]
[378710185,1754979044192,-464.81103394,0.00018678,2]
[378710186,1754979044202,-460.0,0.00018678,2]
[378710187,1754979044211,-467.40617583,0.00018678,2]
[378710188,1754979044221,-460.0,0.00018678,2]
[378710189,1754979044230,-481.0900991,0.00018678,2]
[378710190,1754979044240,-479.16517373,0.00018678,2]
[378710191,1754979044250,-235.911286,0.00018678,2]
[378710192,1754979044259,-801.3,0.00018678,2]
[378710193,1754979044269,-520.22,0.00018678,2]
[378710194,1754979044278,-482.3,0.00018678,2]
[378710195,1754979044288,-554.48,0.00018678,2]
[378710196,1754979044297,-151.0,0.00018678,2]
[378710197,1754979044307,-460.0,0.00018678,2]
[378710198,1754979044317,-467.71701712,0.00018678,2]
[378710199,1754979044326,-460.0,0.00018678,2]
[378710200,1754979044335,-151.0,0.00018678,2]
[378710201,1754979044345,-506.13813166,0.00018678,2]
[378710202,1754979044355,-460.0,0.00018678,2]
[378710203,1754979044365,-460.0,0.00018678,2]
[378710204,1754979044375,-460.0,0.00018678,2]
[378710205,1754979044384,-460.0,0.00018678,2]
[378710206,1754979044393,-151.0,0.00018678,2]
[378710207,1754979044403,-467.54012975,0.00018678,2]
[378710208,1754979044412,-460.0,0.00018678,2]
[378710209,1754979044422,-152.356661,0.00018678,2]
[378710210,1754979044431,-460.0,0.00018678,2]
[378710211,1754979044441,-460.0,0.00018678,2]
[378710212,1754979044451,-460.0,0.00018678,2]
[378710213,1754979044460,-460.0,0.00018678,2]
[378710214,1754979044470,-153.78146801,0.00018678,2]
[378710215,1754979044479,-460.0,0.00018678,2]
[378710216,1754979044488,-589.76,0.00018678,2]
[378710217,1754979044498,-845.2,0.00018678,2]
[378710218,1754979044507,-151.0,0.00018678,2]
[378710219,1754979044516,-151.0,0.00018678,2]
[378710220,1754979044526,-209.024458,0.00018678,2]
[378710221,1754979044535,-695.15,0.00018678,2]
[378710222,1754979044545,-460.0,0.00018678,2]
[378710223,1754979044555,-478.31743784,0.00018678,2]
[378710224,1754979044565,-491.56,0.00018678,2]
[378710225,1754979044574,-460.0,0.00018678,2]
[378710226,1754979044584,-460.0,0.00018678,2]
[378710227,1754979044593,-477.01,0.00018678,2]
[378710228,1754979044603,-151.0,0.00018678,2]
[378710229,1754979044612,-460.0,0.00018678,2]
[378710230,1754979044622,-151.0,0.00018678,2]
[378710231,1754979044631,-151.0,0.00018678,2]
[378710232,1754979044642,-778.21,0.00018678,2]
[378710233,1754979044656,-151.0,0.00018678,2]
[378710234,1754979044665,-151.0,0.00018678,2]
[378710235,1754979044675,-151.0,0.00018678,2]
[378710236,1754979044684,-169.70062341,0.00018678,2]
[378710239,1754979073738,204.50840739,0.00018578,2]
[378710240,1754979106631,214.83611347,0.00018576,2]
[378710241,1754979107722,214.83611347,0.00018577,2]
[378710242,1754979349039,358.61427889,0.00018576,2]
[378710243,1754979435259,-151.0,0.0001867,2]
[378710244,1754979435282,-1200.0,0.00018673,2]
[378710245,1754979435305,-300.0,0.00018674,2]
[378710246,1754979435327,-300.0,0.00018674,2]
[378710247,1754979435351,-1200.0,0.00018674,2]
[378710248,1754979435373,-300.0,0.00018674,2]
[378710249,1754979435397,-300.0,0.00018674,2]
[378710250,1754979435421,-500.0,0.00018675,2]
[378710251,1754979435444,-303.84197912,0.00018675,2]
[378710252,1754979435467,-516.68775025,0.00018675,2]
[378710253,1754979435488,-366.72116026,0.00018675,2]
[378710254,1754979435512,-166.73276325,0.00018675,2]
[378710255,1754979435536,-500.0,0.00018675,2]
[378710256,1754979435560,-434.74447237,0.00018675,2]
[378710257,1754979435583,-460.0,0.00018675,2]
[378710258,1754979435606,-570.33,0.00018675,2]
[378710259,1754979435629,-460.0,0.00018675,2]
[378710260,1754979435652,-464.55581458,0.00018675,2]
[378710261,1754979435676,-460.0,0.00018675,2]
[378710262,1754979435701,-460.0,0.00018675,2]
[378710263,1754979435730,-1502.0,0.00018675,2]
[378710264,1754979435754,-551.15,0.00018675,2]
[378710265,1754979436031,-460.0,0.00018675,2]
[378710266,1754979436058,-460.0,0.00018675,2]
[378710267,1754979436082,-460.0,0.00018676,2]
[378710268,1754979436106,-460.0,0.00018676,2]
[378710269,1754979436130,-806.25,0.00018676,2]
[378710270,1754979436155,-460.0,0.00018676,2]
[378710271,1754979436178,-460.0,0.00018676,2]
[378710272,1754979436200,-460.0,0.00018676,2]
[378710273,1754979436225,-460.0,0.00018676,2]
[378710274,1754979436249,-3697.89,0.00018676,2]
[378710275,1754979436271,-460.0,0.00018676,2]
[378710276,1754979436292,-460.0,0.00018676,2]
[378710277,1754979436315,-460.0,0.00018676,2]
[378710278,1754979436339,-264.41312699,0.00018676,2]
[378710279,1754979436361,-460.0,0.00018676,2]
[378710280,1754979436383,-513.73,0.00018676,2]
[378710281,1754979436405,-603.52,0.00018676,2]
[378710282,1754979436427,-817.79,0.00018676,2]
[378710283,1754979436449,-460.0,0.00018676,2]
[378710284,1754979436471,-460.0,0.00018676,2]
[378710285,1754979436494,-2388.64293318,0.00018676,2]
[378710287,1754979575248,27585.57340603,0.0001867,2]
[378710288,1754979575275,30000.0,0.0001867,2]
[378710289,1754979575298,30000.0,0.0001867,2]
[378710290,1754979575323,30000.0,0.0001867,2]
[378710291,1754979575345,15000.0,0.0001867,2]
[378710292,1754979575368,15000.0,0.0001867,2]
[378710293,1754979575392,15000.0,0.0001867,2]
[378710294,1754979575414,15000.0,0.0001867,2]
[378710295,1754979575436,15000.0,0.0001867,2]
[378710296,1754979575458,15000.0,0.0001867,2]
[378710297,1754979575480,15000.0,0.0001867,2]
[378710298,1754979575501,15000.0,0.0001867,2]
[378710299,1754979585923,4539.35235885,0.00018603,2]
[378710300,1754979594035,3302.64738328,0.00018603,2]
[378710301,1754979634541,313.78749409,0.00018576,2]
[378710302,1754979641818,186.7348729,0.00018578,2]
[378710303,1754979693104,241.143581,0.0001811,2]
[378710304,1754979693478,338.9905411,0.00018114,2]
[378710305,1754979705219,320.930292,0.00013699,2]
[378710307,1754979716701,258.89871239,0.00018577,2]
[378710308,1754979751243,210.35256253,0.0001857,2]
[378710309,1754979808592,4219.9753259,0.00017675,2]
[378710310,1754979810919,653.497758,0.00017675,2]
[378710311,1754979914758,405.37633883,0.00018575,2]
[378710312,1754979978008,186.73487288,0.00018577,2]
[378710323,1754980072668,4821.57790625,0.00018,2]
[378710324,1754980072700,20000.0,0.00018,2]
[378710325,1754980072734,13975.07124094,0.00018,2]
[378710327,1754980119499,225.14748105,0.00018,2]
[378710328,1754980119721,5799.78127801,0.00017674,2]
[378710329,1754980119743,19100.21872199,0.00017674,2]
[378710335,1754980223994,168.0,0.00018585,2]
[378710394,1754980236965,-378.4,0.00018664,3]
[378710395,1754980236975,-469.718066,0.00018667,2]
[378710396,1754980236987,-30.281934,0.00018667,2]
[378710397,1754980236996,-500.0,0.00018667,2]
[378710398,1754980237006,-369.8752213,0.00018667,2]
[378710406,1754980237467,-130.1247787,0.00018667,2]
[378710408,1754980237476,-501.93886216,0.00018667,2]
[378710409,1754980237486,-1342.28239322,0.00018667,2]
[378710410,1754980237495,-151.0,0.00018667,2]
[378710411,1754980237505,-6217.05543576,0.0001867,2]
[378710412,1754980237516,-1175.83434952,0.0001867,2]
[378710421,1754980237828,-846.09416604,0.0001867,2]
[378710422,1754980237845,-1106.52550174,0.0001867,2]
[378710430,1754980240093,-143586.59094524,0.0001867,2]
[378710443,1754980243478,-696.2768272,0.0001867,2]
[378710444,1754980243494,-17015.34353666,0.0001867,2]
[378710445,1754980243505,-4073.34102608,0.0001867,2]
[378710446,1754980244269,505.0,0.0001846,2]
[378710453,1754980245854,-3543.779421,0.0001867,2]
[378710454,1754980245874,-14994.09088699,0.0001867,2]
[378710455,1754980245886,-17034.36614958,0.0001867,2]
[378710456,1754980245897,-18679.30786529,0.0001867,2]
[378710457,1754980246247,-1566.92833392,0.0001867,2]
[378710458,1754980247045,226.78127801,0.00018368,2]
[378710459,1754980247071,278.21872199,0.00018368,2]
[378710460,1754980249643,505.0,0.00018449,2]
[378710461,1754980263974,505.0,0.00018316,2]
[378710462,1754980275362,505.0,0.00018519,2]
[378710463,1754980295200,431.31131792,0.00018572,2]
[378710464,1754980310322,186.73487288,0.00018575,2]
[378710467,1754980341363,181.181863,0.00017815,2]
[378710468,1754980341621,181.181863,0.00017815,120]
[378710469,1754980358122,1000.0,0.00026,120]
[378710470,1754980359156,1000.0,0.00026,120]
[378710471,1754980360074,1000.0,0.00026,120]
[378710472,1754980361218,1000.0,0.00026,120]
[378710473,1754980362626,1000.0,0.00026,120]
[378710480,1754980483288,17407.55322421,0.00017673,2]
[378710481,1754980483310,20000.0,0.00017673,2]
[378710482,1754980483332,20000.0,0.00017673,2]
[378710483,1754980483353,6131.48935329,0.00017673,2]
[378710484,1754980488211,13868.51064671,0.00017673,2]
[378710485,1754980488233,13757.45988219,0.00017673,2]
[378710486,1754980498412,5000.0,0.0001901,6]
[378710487,1754980510471,180.21299072,0.0001857,2]
[378710488,1754980511458,180.2129907,0.0001857,2]
[378710489,1754980511916,180.2129907,0.00018571,2]
[378710490,1754980512449,180.2129907,0.00018571,2]
[378710491,1754980512931,180.2129907,0.00018571,2]
[378710492,1754980515470,5341.47516429,0.00018573,2]
[378710493,1754980515493,1591.78424949,0.00018573,2]
[378710494,1754980523941,600.0,0.00023,30]
[378710495,1754980539320,216.17931876,0.00018567,2]
[378710496,1754980629844,2964.0043592,0.00018082,2]
[378710497,1754980638837,175.74782769,0.00018573,2]
[378710498,1754980645494,749.78439785,0.00018571,2]
[378710499,1754980665946,811.0,0.00018382,2]
[378710500,1754980668745,811.0,0.00018134,2]
[378710501,1754980673920,811.0,0.0001858,2]
[378710502,1754980674278,11869.49984701,0.00018573,2]
[378710503,1754980674305,20000.0,0.00018573,2]
[378710504,1754980674331,2992.99857357,0.00018573,2]
[378710505,1754980676501,811.0,0.0001814,2]
[378710506,1754980678384,5000.0,0.00018603,2]
[378710507,1754980681277,166.62762435,0.00018569,2]
[378710508,1754980681777,166.62762435,0.00018569,2]
[378710509,1754980682349,166.62762435,0.0001857,2]
[378710510,1754980682819,166.62762435,0.00018571,2]
[378710511,1754980683262,166.62762435,0.00018571,2]
[378710512,1754980694118,5000.0,0.00018603,2]
[378710513,1754980720192,426.365435,0.00013699,2]
[378710516,1754980764703,1600.0,0.0001762,2]
[378710521,1754980837683,3336.49786968,0.00018572,2]
[378710522,1754980837706,20000.0,0.00018572,2]
[378710523,1754980837729,7421.37059245,0.00018572,2]
[378710524,1754980851428,1542.452495,0.00017672,2]
[378710525,1754980873835,346.0,0.00018394,2]
[378710526,1754980877986,168.0,0.00018559,2]
[378710527,1754980886465,394.0,0.00018281,2]
[378710528,1754980894399,394.0,0.00018142,2]
[378710529,1754980894813,840.981434,0.00018109,2]
[378710530,1754980895042,1485.59050122,0.0001811,2]
[378710531,1754980946303,7407.60497733,0.00017671,2]
[378710532,1754980946327,2592.39502267,0.00017671,2]
[378710533,1754980958760,17407.60497733,0.000186,2]
[378710534,1754980958781,20000.0,0.000186,2]
[378710535,1754980958803,20000.0,0.000186,2]
[378710536,1754980958830,20000.0,0.000186,2]
[378710537,1754980958851,20000.0,0.000186,2]
[378710538,1754980958872,7857.39502267,0.000186,2]
[378710539,1754980968948,3083.45915461,0.00018603,2]
[378710540,1754980975377,289.00654119,0.00018572,2]
[378710541,1754980977207,5000.0,0.00018603,2]
[378710554,1754981000627,3770.13928153,0.00018571,2]
[378710555,1754981000651,20000.0,0.00018571,2]
[378710556,1754981000674,20000.0,0.00018571,2]
[378710557,1754981000698,20000.0,0.00018571,2]
[378710558,1754981000722,20000.0,0.00018571,2]
[378710559,1754981000745,20000.0,0.00018571,2]
[378710560,1754981000768,13101.64568047,0.00018571,2]
[378710563,1754981030535,1004.23343853,0.00018573,2]
[378710564,1754981034296,5894.120881,0.00017671,2]
[378710565,1754981034322,19005.879119,0.00017671,2]
[378710566,1754981080417,179.89206476,0.00018432,2]
[378710567,1754981094064,198.06,0.00018523,2]
[378710572,1754981164279,616.16881624,0.00018571,2]
[378710573,1754981164302,20000.0,0.00018571,2]
[378710574,1754981164325,20000.0,0.00018571,2]
[378710575,1754981164348,20000.0,0.00018571,2]
[378710576,1754981164371,20000.0,0.00018571,2]
[378710577,1754981164393,20000.0,0.00018571,2]
[378710578,1754981164417,20000.0,0.00018571,2]
[378710579,1754981164440,19383.83118376,0.00018571,2]
[378710580,1754981166903,172.1845301,0.00018564,2]
[378710581,1754981171740,443.98428614,0.00018603,2]
[378710582,1754981171763,4556.01571386,0.00018603,2]
[378710583,1754981179623,4437.58813899,0.00018603,2]
[378710584,1754981188748,5000.0,0.00018603,2]
[378710585,1754981204205,5000.0,0.00018603,2]
[378710586,1754981220331,1006.39614715,0.00018603,2]
[378710587,1754981220356,3993.60385285,0.00018603,2]
[378710588,1754981235812,5000.0,0.00018603,2]
[378710589,1754981237915,157.63588715,7.1e-07,2]
[378710590,1754981238027,157.63588715,7.1e-07,2]
[378710591,1754981238140,157.63588715,7.1e-07,2]
[378710592,1754981238252,157.63588715,7.1e-07,2]
[378710593,1754981238356,157.63588715,7.1e-07,2]
[378710594,1754981238466,157.63588715,7.1e-07,2]
[378710595,1754981238685,157.63588715,7.1e-07,2]
[378710596,1754981238792,157.63588715,7.1e-07,2]
[378710597,1754981238894,157.63588715,7.1e-07,2]
[378710602,1754981251403,5000.0,0.00018603,2]
[378710603,1754981252175,150.0,0.00021521,30]
[378710604,1754981267010,4587.6731628,0.00018603,2]
[378710605,1754981267033,412.3268372,0.00018603,2]
[378710616,1754981283767,5000.0,0.00018603,2]
[378710617,1754981316686,231.20523296,0.00018571,2]
[378710618,1754981325804,762.86205664,0.00018569,2]
[378710619,1754981333050,13593.6058732,0.00018569,2]
[378710620,1754981333072,20000.0,0.00018569,2]
[378710621,1754981333094,20000.0,0.00018569,2]
[378710622,1754981333116,20000.0,0.00018569,2]
[378710623,1754981333138,20000.0,0.00018569,2]
[378710624,1754981333161,20000.0,0.00018569,2]
[378710625,1754981333184,20000.0,0.00018569,2]
[378710626,1754981333206,9087.62446191,0.00018569,2]
[378710627,1754981351593,2931.0,0.00026,120]
[378710628,1754981354456,2257.55577658,0.00025999,120]
[378710652,1754981432183,-505.0,0.00018659,2]
[378710654,1754981432197,-152.87880415,0.00018661,2]
[378710656,1754981432207,-300.0,0.00018666,2]
[378710658,1754981432216,-1200.0,0.00018666,2]
[378710660,1754981432226,-1200.0,0.00018667,2]
[378710662,1754981432235,-227.72544897,0.00018667,2]
[378710666,1754981432252,-272.27455103,0.00018667,2]
[378710668,1754981432262,-300.0,0.00018667,2]
[378710671,1754981432271,-300.0,0.00018667,2]
[378710674,1754981432280,-300.0,0.00018667,2]
[378710677,1754981432289,-122.47544897,0.00018668,2]
[378710681,1754981432300,-337.52455103,0.00018668,2]
[378710684,1754981432309,-189.83091107,0.00018668,2]
[378710687,1754981432321,-270.16908893,0.00018668,2]
[378710690,1754981432330,-366.9936289,0.00018668,2]
[378710694,1754981432342,-100.73972577,0.00018668,2]
[378710697,1754981432351,-493.0540163,0.00018668,2]
[378710701,1754981432362,-101.0859837,0.00018668,2]
[378710704,1754981432371,-468.7717339,0.00018668,2]
[378710707,1754981432380,-232.81400252,0.00018668,2]
[378710711,1754981432393,-227.18599748,0.00018668,2]
[378710714,1754981432402,-460.0,0.00018668,2]
[378710716,1754981432411,-110.41400188,0.00018668,2]
[378710778,1754981440489,-349.58599812,0.00018668,2]
[378710779,1754981440507,-460.0,0.00018668,2]
[378710780,1754981440523,-460.0,0.00018668,2]
[378710781,1754981440534,-460.0,0.00018668,2]
[378710782,1754981440543,-460.0,0.00018668,2]
[378710783,1754981440553,-460.0,0.00018668,2]
[378710784,1754981440563,-460.0,0.00018668,2]
[378710785,1754981440572,-460.0,0.00018668,2]
[378710786,1754981440582,-460.0,0.00018668,2]
[378710787,1754981440591,-578.75,0.00018668,2]
[378710788,1754981440601,-460.0,0.00018668,2]
[378710789,1754981440611,-397.28079239,0.00018668,2]
[378710790,1754981442158,10912.37553809,0.000186,2]
[378710791,1754981442180,20000.0,0.000186,2]
[378710792,1754981442202,19003.10661163,0.000186,2]
[378710806,1754981443242,-62.71920761,0.00018668,2]
[378710807,1754981443251,-460.0,0.00018668,2]
[378710808,1754981443262,-460.0,0.00018668,2]
[378710809,1754981443271,-462.21,0.00018668,2]
[378710810,1754981443280,-460.0,0.00018668,2]
[378710811,1754981443290,-460.0,0.00018668,2]
[378710812,1754981443299,-460.0,0.00018668,2]
[378710813,1754981443308,-460.0,0.00018668,2]
[378710814,1754981443317,-460.0,0.00018668,2]
[378710815,1754981443327,-464.85638775,0.00018668,2]
[378710816,1754981443336,-460.0,0.00018668,2]
[378710817,1754981443345,-460.0,0.00018668,2]
[378710818,1754981443355,-460.0,0.00018668,2]
[378710819,1754981443364,-460.0,0.00018668,2]
[378710821,1754981443375,-1675.46,0.00018668,2]
[378710823,1754981443384,-460.0,0.00018668,2]
[378710824,1754981443393,-463.58381569,0.00018668,2]
[378710825,1754981443402,-460.0,0.00018668,2]
[378710826,1754981443411,-460.0,0.00018668,2]
[378710827,1754981443421,-2242.01059295,0.00018668,2]
[378710831,1754981447130,-1612.08940705,0.00018668,2]
[378710832,1754981447139,-462.08545418,0.00018668,2]
[378710833,1754981447148,-460.0,0.00018668,2]
[378710834,1754981447157,-163.1040034,0.00018668,2]
[378710835,1754981447167,-462.2334082,0.00018668,2]
[378710836,1754981447175,-460.0,0.00018668,2]
[378710837,1754981447184,-165.63337877,0.00018668,2]
[378710838,1754981447194,-293.81880784,0.00018668,2]
[378710839,1754981447203,-460.0,0.00018668,2]
[378710840,1754981447212,-460.0,0.00018668,2]
[378710841,1754981447221,-532.51,0.00018668,2]
[378710842,1754981447230,-460.0,0.00018668,2]
[378710843,1754981447239,-460.0,0.00018668,2]
[378710844,1754981447249,-460.0,0.00018668,2]
[378710845,1754981447258,-2664.29,0.00018668,2]
[378710846,1754981447267,-900.24,0.00018668,2]
[378710847,1754981447276,-460.0,0.00018668,2]
[378710848,1754981447285,-460.0,0.00018668,2]
[378710849,1754981447295,-460.0,0.00018668,2]
[378710850,1754981447303,-151.25293145,0.00018668,2]
[378710851,1754981447313,-460.0,0.00018668,2]
[378710852,1754981447322,-460.0,0.00018668,2]
[378710853,1754981447331,-331.94744192,0.00018668,2]
[378710854,1754981447340,-3202.21,0.00018668,2]
[378710855,1754981447349,-460.0,0.00018668,2]
[378710856,1754981447358,-460.0,0.00018668,2]
[378710857,1754981447367,-460.0,0.00018668,2]
[378710858,1754981447377,-460.0,0.00018668,2]
[378710859,1754981447386,-463.01629162,0.00018668,2]
[378710860,1754981447395,-460.0,0.00018668,2]
[378710861,1754981447404,-460.0,0.00018668,2]
[378710862,1754981447413,-649.59,0.00018668,2]
[378710863,1754981447422,-460.0,0.00018668,2]
[378710864,1754981447431,-462.40122894,0.00018668,2]
[378710865,1754981447440,-460.0,0.00018668,2]
[378710866,1754981447449,-460.0,0.00018668,2]
[378710867,1754981447458,-230.87362656,0.00018668,2]
[378710868,1754981447467,-3464.98,0.00018669,2]
[378710869,1754981447476,-957.68,0.00018669,2]
[378710870,1754981447486,-460.0,0.00018669,2]
[378710871,1754981447495,-609.44,0.00018669,2]
[378710872,1754981447504,-460.0,0.00018669,2]
[378710873,1754981447514,-896.89,0.00018669,2]
[378710874,1754981447522,-1935.44,0.00018669,2]
[378710875,1754981447531,-936.6,0.00018669,2]
[378710876,1754981447540,-460.0,0.00018669,2]
[378710877,1754981447549,-460.0,0.00018669,2]
[378710878,1754981447558,-460.0,0.00018669,2]
[378710879,1754981447568,-460.0,0.00018669,2]
[378710880,1754981447577,-460.0,0.00018669,2]
[378710881,1754981447586,-460.0,0.00018669,2]
[378710882,1754981447595,-460.0,0.00018669,2]
[378710883,1754981447605,-1211.39,0.00018669,2]